bitfinex/quotes_BTCUSD_20220120
["timestamp","ask_amount","ask_price","bid_price","bid_amount"]
[1642692656518,6.876e-05,43316.0,43314.0,0.05]
[1642692656718,6.876e-05,43316.0,43314.0,0.081]
[1642692656918,6.876e-05,43316.0,43314.0,0.031]
[1642692657118,6.876e-05,43316.0,43314.0,0.081]
[1642692658020,6.876e-05,43316.0,43314.0,0.05]
[1642692658222,6.876e-05,43316.0,43311.0,0.2942]
[1642692658423,6.876e-05,43316.0,43310.0,1.54]
[1642692658823,6.876e-05,43316.0,43311.0,0.035]
[1642692659023,0.00056544,43316.0,43314.0,0.36679207]
[1642692659223,0.00056544,43316.0,43311.0,0.035]
[1642692660069,0.00056544,43316.0,43310.0,1.69]
[1642692660070,0.057747,43315.0,43310.0,1.69]
[1642692660269,0.057747,43315.0,43310.0,1.54]
[1642692660766,0.057747,43315.0,43310.0,1.607]
[1642692660967,0.00056544,43316.0,43310.0,1.607]
[1642692661171,6.876e-05,43316.0,43310.0,1.607]
[1642692661370,0.00049667,43315.0,43310.0,1.607]
[1642692661668,0.00049667,43315.0,43310.0,1.757]
[1642692661969,0.00049667,43315.0,43310.0,1.69]
[1642692662269,6.876e-05,43316.0,43311.0,0.115458]
[1642692662471,0.00049667,43315.0,43312.0,1.1]
[1642692662668,0.00049667,43315.0,43313.0,1.49896735]
[1642692663068,0.00049667,43315.0,43313.0,0.15896735]
[1642692663469,8.595e-05,43321.0,43313.0,0.15896735]
[1642692663914,0.65041341,43324.0,43313.0,0.15896735]
[1642692663915,0.00049668,43316.0,43313.0,0.15896735]
[1642692664114,0.00049668,43316.0,43313.0,0.05896735]
[1642692664316,0.00049668,43316.0,43313.0,0.0462]
[1642692664719,0.04852425,43321.0,43313.0,0.0462]
[1642692664720,0.04282287,43320.0,43313.0,0.032]
[1642692664916,0.28745086,43322.0,43313.0,0.032]
[1642692665115,0.00049669,43317.0,43313.0,0.032]
[1642692665915,0.057736,43320.0,43313.0,0.032]
[1642692666115,0.00049669,43317.0,43313.0,0.0462]
[1642692666715,0.00049669,43317.0,43313.0,0.0712]
[1642692667118,0.001,43318.0,43313.0,0.025]
[1642692667318,0.00049669,43317.0,43313.0,0.075]
[1642692667769,0.00049669,43317.0,43315.0,0.00668627]
[1642692667969,0.00049669,43317.0,43316.0,1.25206768]
[1642692668166,0.00049669,43317.0,43316.0,1.40206768]
[1642692668370,0.001,43318.0,43316.0,1.40206768]
[1642692668570,0.02311,43317.0,43316.0,1.40206768]
[1642692668769,0.02311,43317.0,43316.0,3.32829346]
[1642692669168,0.02311,43317.0,43316.0,3.32953079]
[1642692669368,0.00010314,43322.0,43318.0,1.2]
[1642692669571,0.5,43324.0,43318.0,1.2]
[1642692669572,0.38261911,43324.0,43321.0,0.2]
[1642692669770,0.42,43331.0,43324.0,1.0]
[1642692669971,0.42,43331.0,43329.0,0.00126549]
[1642692670171,0.00013752,43330.0,43329.0,0.00126549]
[1642692670374,0.00013752,43330.0,43329.0,0.0462]
[1642692670569,0.00013752,43330.0,43329.0,0.0962]
[1642692670768,0.00013752,43330.0,43329.0,0.1222]
[1642692670970,0.00013752,43330.0,43329.0,0.0722]
[1642692671170,0.00013752,43330.0,43329.0,3.94283095]
[1642692671460,0.13653875,43331.0,43330.0,1.2]
[1642692671640,0.003,43345.0,43331.0,1.24769748]
[1642692671835,0.04,43348.0,43344.0,0.00123754]
[1642692671836,0.02657,43348.0,43344.0,0.00123754]
[1642692672035,0.02657,43348.0,43345.0,2.37517226]
[1642692672235,0.02657,43348.0,43345.0,2.37333226]
[1642692672445,0.004,43359.0,43347.0,0.00129026]
[1642692672637,0.002,43361.0,43357.0,0.00128963]
[1642692672638,0.001,43360.0,43357.0,0.00128963]
[1642692672841,0.25974024,43363.0,43357.0,0.00128963]
[1642692672842,0.25674024,43363.0,43359.0,0.00124804]
[1642692673037,0.25674024,43363.0,43360.0,0.0462]
[1642692673038,0.08474024,43363.0,43360.0,0.0462]
[1642692673234,0.14086709,43371.0,43360.0,0.0462]
[1642692673235,0.03996709,43371.0,43363.0,0.32071052]
[1642692673435,0.46147251,43376.0,43364.0,1.2462]
[1642692673634,0.06453549,43390.0,43370.0,0.00120759]
[1642692673836,0.00129926,43391.0,43370.0,0.00120759]
[1642692674036,0.05864484,43387.0,43371.0,0.03247714]
[1642692674339,0.01571,43402.0,43378.0,0.16]
[1642692674535,0.173011,43382.0,43377.0,1.2]
[1642692674736,0.173011,43382.0,43376.0,0.00124004]
[1642692674737,0.04573635,43381.0,43376.0,0.00124004]
[1642692674933,0.10340435,43381.0,43376.0,0.00124004]
[1642692675172,0.12260021,43389.0,43376.0,0.00124004]
[1642692675370,0.14983021,43389.0,43376.0,0.00124004]
[1642692675568,0.18057913,43385.0,43376.0,0.00124004]
[1642692675772,0.057669,43380.0,43376.0,4e-08]
[1642692675972,0.057669,43380.0,43372.0,0.00126513]
[1642692675973,0.376234,43377.0,43372.0,0.00126513]
[1642692676167,0.376234,43377.0,43371.0,0.008]
[1642692676368,0.376234,43377.0,43373.0,0.00010314]
[1642692676569,0.376234,43377.0,43365.0,0.00120413]
[1642692676768,0.173053,43376.0,43366.0,0.00022347]
[1642692678171,0.00042156,43373.0,43366.0,0.00022347]
[1642692678569,0.00042156,43373.0,43372.0,0.00127536]
[1642692679215,0.84,43379.0,43372.0,0.00127536]
[1642692679413,0.00042157,43375.0,43372.0,0.00127536]
[1642692680420,8.595e-05,43378.0,43374.0,0.00120751]
[1642692680618,0.00047482,43376.0,43374.0,0.00120751]
[1642692681018,0.00047482,43376.0,43375.0,0.0012537]
[1642692681218,0.00047482,43376.0,43375.0,1.1974537]
[1642692681516,6.876e-05,43377.0,43375.0,1.1974537]
[1642692682416,6.876e-05,43377.0,43376.0,0.9994891]
[1642692682692,6.876e-05,43377.0,43376.0,1.0456891]
[1642692682989,6.876e-05,43377.0,43376.0,0.0462]
[1642692683889,6.876e-05,43377.0,43376.0,0.5962]
[1642692684490,6.876e-05,43377.0,43376.0,0.71387524]
[1642692684691,6.876e-05,43377.0,43376.0,1.00903464]
[1642692684898,6.876e-05,43377.0,43376.0,1.40132026]
[1642692685091,6.876e-05,43377.0,43376.0,1.69647966]
[1642692685289,6.876e-05,43377.0,43376.0,1.40132026]
[1642692685489,6.876e-05,43377.0,43376.0,1.7661239]
[1642692685891,6.876e-05,43377.0,43376.0,0.9082188]
[1642692686090,6.876e-05,43377.0,43376.0,0.8757888]
[1642692686314,6.876e-05,43377.0,43376.0,0.71889026]
[1642692686914,6.876e-05,43377.0,43376.0,0.78889026]
[1642692687312,6.876e-05,43377.0,43376.0,1.57444944]
[1642692687518,6.876e-05,43377.0,43376.0,1.56301944]
[1642692687714,6.876e-05,43377.0,43376.0,1.44577968]
[1642692687916,6.876e-05,43377.0,43376.0,1.28889026]
[1642692688114,6.876e-05,43377.0,43376.0,1.21889026]
[1642692688314,6.876e-05,43377.0,43376.0,1.4181833]
[1642692688817,6.876e-05,43377.0,43376.0,1.4881833]
[1642692689116,6.876e-05,43377.0,43376.0,0.8881833]
[1642692689317,6.876e-05,43377.0,43376.0,0.84456828]
[1642692689518,6.876e-05,43377.0,43376.0,0.68767524]
[1642692689716,6.876e-05,43377.0,43376.0,0.18767524]
[1642692689919,0.37630276,43377.0,43376.0,0.18767524]
[1642692690170,0.37630276,43377.0,43369.0,0.01143]
[1642692690171,6.876e-05,43377.0,43373.0,0.00129799]
[1642692690371,6.876e-05,43377.0,43376.0,0.61767969]
[1642692690968,6.876e-05,43377.0,43376.0,0.66767969]
[1642692691968,6.876e-05,43377.0,43376.0,2.99481195]
[1642692692673,6.876e-05,43377.0,43376.0,2.99419292]
[1642692692866,6.876e-05,43377.0,43376.0,3.00919292]
[1642692693468,6.876e-05,43377.0,43376.0,2.50919292]
[1642692694114,6.876e-05,43377.0,43376.0,2.49419292]
[1642692694517,6.876e-05,43377.0,43376.0,2.60562292]
[1642692694716,6.876e-05,43377.0,43376.0,2.80491263]
[1642692694919,6.876e-05,43377.0,43376.0,2.81991263]
[1642692695117,6.876e-05,43377.0,43376.0,3.18831274]
[1642692695722,6.876e-05,43377.0,43376.0,3.68831274]
[1642692696023,6.876e-05,43377.0,43376.0,3.67331274]
[1642692696222,6.876e-05,43377.0,43376.0,3.67459189]
[1642692696621,6.876e-05,43377.0,43376.0,3.40002249]
[1642692696822,6.876e-05,43377.0,43376.0,3.44602249]
[1642692698067,6.876e-05,43377.0,43376.0,3.03162238]
[1642692698768,6.876e-05,43377.0,43376.0,3.04624141]
[1642692698967,6.876e-05,43377.0,43376.0,3.52115726]
[1642692700070,6.876e-05,43377.0,43376.0,3.45715726]
[1642692700867,6.876e-05,43377.0,43376.0,1.190025]
[1642692701310,6.876e-05,43377.0,43376.0,1.24767]
[1642692701714,6.876e-05,43377.0,43376.0,1.21510915]
[1642692702116,6.876e-05,43377.0,43376.0,1.15510915]
[1642692702715,6.876e-05,43377.0,43376.0,1.92894376]
[1642692702915,6.876e-05,43377.0,43376.0,4.33407602]
[1642692703118,6.876e-05,43377.0,43376.0,4.06024141]
[1642692704114,6.876e-05,43377.0,43376.0,3.98224141]
[1642692704414,6.876e-05,43377.0,43376.0,1.65510915]
[1642692704615,6.876e-05,43377.0,43376.0,1.45510915]
[1642692704917,6.876e-05,43377.0,43376.0,3.85824141]
[1642692705670,6.876e-05,43377.0,43376.0,1.53110915]
[1642692706065,6.876e-05,43377.0,43376.0,1.45510915]
[1642692706466,6.876e-05,43377.0,43376.0,3.78224141]
[1642692706669,6.876e-05,43377.0,43376.0,3.83988641]
[1642692706870,6.876e-05,43377.0,43376.0,3.87488641]
[1642692707672,6.876e-05,43377.0,43376.0,3.81724141]
[1642692708173,6.876e-05,43377.0,43376.0,3.78224141]
[1642692708472,6.876e-05,43377.0,43376.0,1.15510915]
[1642692708673,6.876e-05,43377.0,43376.0,0.66270915]
[1642692708919,6.876e-05,43377.0,43376.0,0.62843]
[1642692709115,6.876e-05,43377.0,43376.0,0.567]
[1642692709712,6.876e-05,43377.0,43376.0,0.967]
[1642692709912,6.876e-05,43377.0,43376.0,0.567]
[1642692710116,6.876e-05,43377.0,43376.0,0.5]
[1642692710821,6.876e-05,43377.0,43376.0,0.522]
[1642692711515,0.35006876,43377.0,43376.0,0.522]
[1642692711718,2.8128263,43377.0,43376.0,0.522]
[1642692711920,3.1890603,43377.0,43376.0,0.522]
[1642692712112,3.1890603,43377.0,43376.0,0.5]
[1642692712315,0.20294797,43374.0,43370.0,0.00127175]
[1642692712565,0.115345,43373.0,43367.0,1.81093046]
[1642692712764,0.48927705,43372.0,43367.0,1.81093046]
[1642692712970,0.48927705,43372.0,43370.0,0.049]
[1642692713165,0.58631752,43371.0,43370.0,0.049]
[1642692713368,0.05,43371.0,43370.0,0.049]
[1642692713567,0.20574156,43372.0,43370.0,0.049]
[1642692713764,0.74351243,43371.0,43370.0,0.049]
[1642692713963,0.79351243,43371.0,43370.0,0.049]
[1642692714163,0.5,43371.0,43368.0,8.595e-05]
[1642692714563,0.5,43371.0,43361.0,0.00123812]
[1642692714564,0.057676,43368.0,43362.0,0.00018909]
[1642692714765,0.20911193,43368.0,43362.0,0.00018909]
[1642692714967,0.19514722,43367.0,43362.0,0.00018909]
[1642692715170,0.115365,43366.0,43362.0,0.00018909]
[1642692715670,0.05,43365.0,43362.0,0.00018909]
[1642692716067,0.05,43365.0,43359.0,0.00024066]
[1642692717018,0.057682,43364.0,43359.0,0.03724066]
[1642692717218,0.34924665,43364.0,43359.0,0.03724066]
[1642692717418,0.057682,43364.0,43360.0,0.00022347]
[1642692717625,0.352323,43364.0,43360.0,0.00022347]
[1642692718022,1.38923429,43361.0,43360.0,0.00022347]
[1642692718322,1.76546829,43361.0,43360.0,0.00022347]
[1642692718524,0.05,43360.0,43353.0,0.00106713]
[1642692718725,0.05,43360.0,43350.0,0.01143]
[1642692718726,0.057691,43359.0,43350.0,0.01143]
[1642692718919,0.057691,43359.0,43354.0,0.00010315]
[1642692719723,0.057691,43359.0,43355.0,0.01143]
[1642692720178,0.057691,43359.0,43356.0,6.876e-05]
[1642692720377,0.042691,43359.0,43356.0,6.876e-05]
[1642692721581,0.042691,43359.0,43354.0,0.02709]
[1642692721776,0.042691,43359.0,43354.0,0.01143]
[1642692721976,0.042691,43359.0,43355.0,8.595e-05]
[1642692722379,0.042691,43359.0,43356.0,0.05]
[1642692723578,0.042691,43359.0,43358.0,0.01143]
[1642692724016,0.042691,43359.0,43358.0,0.02709]
[1642692724410,0.042691,43359.0,43356.0,0.107678]
[1642692724715,0.042691,43359.0,43356.0,0.05]
[1642692724912,0.2408845,43359.0,43356.0,0.05]
[1642692725312,0.3562495,43359.0,43356.0,0.05]
[1642692726315,0.3562495,43359.0,43356.0,0.06143]
[1642692726510,0.3562495,43359.0,43356.0,0.05]
[1642692727011,0.2985665,43359.0,43356.0,0.05]
[1642692727874,0.2985665,43359.0,43353.0,0.00106711]
[1642692728268,0.2985665,43359.0,43350.0,0.01566]
[1642692728469,0.19403002,43354.0,43349.0,0.00125245]
[1642692728672,0.24403002,43354.0,43353.0,0.0010671]
[1642692729175,0.24403002,43354.0,43348.0,1.81093046]
[1642692729176,0.22700384,43349.0,43348.0,1.81093046]
[1642692729371,0.27700384,43349.0,43345.0,0.44709]
[1642692729572,0.27700384,43349.0,43347.0,0.01566]
[1642692729780,0.27700384,43349.0,43345.0,0.40250595]
[1642692729781,1.20127101,43348.0,43345.0,0.40250595]
[1642692729977,1.20127101,43348.0,43333.0,0.81294529]
[1642692729978,0.22928333,43340.0,43333.0,0.81294529]
[1642692730174,0.00128478,43337.0,43333.0,0.01573]
[1642692730373,0.00128478,43337.0,43334.0,0.00020628]
[1642692730573,0.00128478,43337.0,43331.0,1.90849373]
[1642692730574,0.05772,43335.0,43331.0,1.90849373]
[1642692730776,0.05772,43335.0,43331.0,1.81093046]
[1642692730975,0.05772,43335.0,43333.0,0.00071647]
[1642692731432,0.05,43338.0,43333.0,0.00071647]
[1642692731627,0.29467848,43350.0,43338.0,0.057701]
[1642692731628,0.057701,43343.0,43338.0,0.057701]
[1642692731826,0.057701,43343.0,43338.0,0.05894777]
[1642692732026,0.00013752,43342.0,43338.0,0.05894777]
[1642692732227,0.00013752,43342.0,43339.0,0.42197467]
[1642692732427,0.057702,43351.0,43338.0,0.05894777]
[1642692732428,0.00012033,43341.0,43338.0,0.05894777]
[1642692732632,0.00012033,43341.0,43339.0,1.81093046]
[1642692732827,0.00127458,43355.0,43343.0,0.057695]
[1642692733030,0.00127458,43355.0,43344.0,0.33707848]
[1642692733235,0.0003438,43354.0,43351.0,0.02003835]
[1642692733434,0.0003438,43354.0,43352.0,0.04873914]
[1642692733629,0.00047427,43363.0,43353.0,3.3068879]
[1642692733828,0.00047427,43363.0,43362.0,0.00126325]
[1642692734030,0.00047427,43363.0,43362.0,1.46419125]
[1642692734231,0.00047427,43363.0,43362.0,3.37512171]
[1642692734429,0.20618537,43372.0,43362.0,3.37512171]
[1642692734629,0.00047597,43365.0,43362.0,2.06746371]
[1642692734930,0.00100887,43365.0,43362.0,2.42746371]
[1642692735184,0.00048649,43365.0,43362.0,2.50714371]
[1642692735381,0.0004693,43364.0,43363.0,0.00120973]
[1642692735584,0.0004693,43364.0,43363.0,0.84360973]
[1642692735982,0.0004693,43364.0,43363.0,0.94360973]
[1642692736181,0.0004693,43364.0,43363.0,0.14360973]
[1642692736381,0.0004693,43364.0,43363.0,0.59360973]
[1642692736983,0.0004693,43364.0,43363.0,0.21860973]
[1642692737184,0.0004693,43364.0,43363.0,0.1174]
[1642692737381,0.0004693,43364.0,43363.0,0.5174]
[1642692737580,0.0004693,43364.0,43363.0,0.6174]
[1642692737982,0.0004693,43364.0,43363.0,0.6674]
[1642692738285,0.0004693,43364.0,43363.0,4.18460444]
[1642692738486,0.00042487,43367.0,43364.0,1.05]
[1642692738682,0.00042487,43367.0,43365.0,0.0424]
[1642692739115,0.421,43379.0,43365.0,0.0424]
[1642692739315,0.421,43379.0,43369.0,0.42625547]
[1642692739316,0.00169934,43375.0,43369.0,0.42625547]
[1642692739514,0.00012033,43371.0,43370.0,0.100057]
[1642692740314,0.00012033,43371.0,43370.0,1.000057]
[1642692740613,0.00012033,43371.0,43370.0,1.3939713]
[1642692740815,0.00012033,43371.0,43370.0,0.47816927]
[1642692741015,0.00012033,43371.0,43370.0,0.48551227]
[1642692741215,0.00012033,43371.0,43370.0,0.2074]
[1642692741416,0.00012033,43371.0,43370.0,0.1074]
[1642692742217,0.00012033,43371.0,43370.0,0.6424]
[1642692742666,0.421,43379.0,43370.0,0.6424]
[1642692742870,0.05,43376.0,43370.0,0.6424]
[1642692743066,0.421,43379.0,43370.0,0.6744]
[1642692743067,0.00042493,43373.0,43370.0,0.6744]
[1642692743672,0.00042493,43373.0,43371.0,0.29029114]
[1642692743865,0.00012033,43378.0,43371.0,0.32553107]
[1642692744065,0.00012033,43378.0,43371.0,0.38625738]
[1642692744268,0.00010314,43377.0,43370.0,0.65017668]
[1642692744465,0.00010314,43377.0,43370.0,0.69870027]
[1642692744666,8.595e-05,43376.0,43370.0,0.79821025]
[1642692745066,0.00012033,43378.0,43371.0,0.00557948]
[1642692745266,0.00012033,43378.0,43370.0,0.84913681]
[1642692745467,0.00035506,43375.0,43371.0,0.00612533]
[1642692745665,0.00035506,43375.0,43370.0,0.8424]
[1642692745868,0.00035506,43375.0,43370.0,0.2424]
[1642692746068,0.10802106,43375.0,43370.0,0.05]
[1642692746316,0.05,43375.0,43367.0,0.00122492]
[1642692746517,0.00012033,43378.0,43368.0,0.36872187]
[1642692746715,0.0004224,43375.0,43369.0,0.29311846]
[1642692746919,0.19719737,43375.0,43369.0,0.38921846]
[1642692747113,0.24719737,43375.0,43369.0,0.1961]
[1642692747414,0.30486337,43375.0,43369.0,0.0461]
[1642692747716,0.30486337,43375.0,43368.0,0.036]
[1642692747717,0.30486336,43375.0,43368.0,0.036]
[1642692748213,0.24719736,43375.0,43364.0,0.298764]
[1642692748414,0.107672,43372.0,43365.0,0.00675575]
[1642692748614,0.24719736,43375.0,43365.0,0.00685889]
[1642692748816,0.24677497,43375.0,43365.0,0.00685889]
[1642692749013,0.24719732,43375.0,43365.0,0.07785889]
[1642692749213,0.24719732,43375.0,43366.0,0.0461]
[1642692749417,0.24719732,43375.0,43366.0,0.096863]
[1642692749616,0.05042235,43375.0,43367.0,0.29373172]
[1642692749816,0.00042235,43375.0,43368.0,0.0461]
[1642692750069,0.00010314,43377.0,43368.0,0.0461]
[1642692750270,0.00042237,43375.0,43368.0,0.0461]
[1642692751171,0.05775095,43376.0,43368.0,0.1041]
[1642692751370,0.00042238,43375.0,43368.0,0.3849884]
[1642692751571,0.00042238,43375.0,43368.0,0.2041]
[1642692752371,0.05008595,43376.0,43369.0,0.05766]
[1642692752571,0.00042238,43375.0,43370.0,0.33688079]
[1642692752773,0.00042238,43375.0,43372.0,0.00122971]
[1642692753373,0.00042238,43375.0,43374.0,0.00124466]
[1642692753572,8.595e-05,43376.0,43375.0,0.00773937]
[1642692753819,0.00050836,43376.0,43375.0,0.96443222]
[1642692754120,0.00050836,43376.0,43375.0,1.06443222]
[1642692754721,8.595e-05,43376.0,43375.0,4.93284247]
[1642692754921,0.001,43379.0,43377.0,0.95]
[1642692754922,0.00042243,43379.0,43377.0,0.95]
[1642692755123,0.001,43381.0,43378.0,2.15193085]
[1642692755322,0.001,43381.0,43379.0,0.13122718]
[1642692755519,0.001,43381.0,43379.0,0.18122718]
[1642692755520,6.876e-05,43380.0,43379.0,0.18122718]
[1642692755722,6.876e-05,43380.0,43379.0,1.42732718]
[1642692756021,6.876e-05,43380.0,43379.0,1.64906741]
[1642692756220,8.76e-06,43382.0,43379.0,2.00906741]
[1642692756424,0.001,43399.0,43392.0,0.00125757]
[1642692756625,0.001,43399.0,43392.0,6.51714649]
[1642692757126,0.002,43393.0,43392.0,6.65114649]
[1642692757771,0.002,43393.0,43392.0,9.30992159]
[1642692758367,0.002,43393.0,43392.0,9.27592159]
[1642692759069,0.002,43393.0,43392.0,6.54514649]
[1642692760267,0.002,43393.0,43392.0,6.51714649]
[1642692761072,0.002,43393.0,43392.0,6.54914649]
[1642692762323,0.002,43393.0,43392.0,6.51714649]
[1642692762922,0.002,43393.0,43392.0,4.19001423]
[1642692763119,0.002,43393.0,43392.0,4.21501423]
[1642692763521,0.002,43393.0,43392.0,4.31501423]
[1642692764324,0.002,43393.0,43392.0,4.29001423]
[1642692765165,0.002,43393.0,43392.0,4.31701423]
[1642692766265,0.002,43393.0,43392.0,4.29001423]
[1642692766966,0.00252954,43393.0,43392.0,4.29001423]
[1642692767164,0.00252954,43393.0,43392.0,4.33301423]
[1642692768366,0.00252954,43393.0,43392.0,4.29001423]
[1642692769220,0.00252954,43393.0,43392.0,4.31601423]
[1642692770516,0.00252954,43393.0,43392.0,4.30101423]
[1642692770918,0.10901384,43401.0,43393.0,1.36]
[1642692771124,9.13e-06,43401.0,43399.0,0.00120646]
[1642692771422,0.001,43411.0,43406.0,0.00124094]
[1642692771621,0.001,43411.0,43406.0,4.18678517]
[1642692771818,0.001,43411.0,43406.0,4.38208861]
[1642692772021,0.001,43415.0,43407.0,1.2]
[1642692772219,0.001,43415.0,43406.0,4.79728261]
[1642692772220,0.001,43415.0,43411.0,0.7774]
[1642692772420,0.001,43415.0,43412.0,0.0461]
[1642692772672,0.001,43417.0,43412.0,0.0461]
[1642692772866,0.00058446,43414.0,43412.0,0.0461]
[1642692773170,0.3079,43423.0,43417.0,1.20758821]
[1642692773171,0.002,43420.0,43417.0,1.20758821]
[1642692773367,0.21067336,43423.0,43418.0,1.53843538]
[1642692773670,0.09861494,43423.0,43418.0,1.3461]
[1642692773865,0.09861494,43423.0,43418.0,1.35328638]
[1642692774064,0.09861494,43423.0,43419.0,0.00635818]
[1642692774270,0.09861494,43423.0,43420.0,0.05178243]
[1642692774469,0.09861494,43423.0,43420.0,0.0461]
[1642692775668,0.14861494,43423.0,43420.0,0.0461]
[1642692776071,0.172801,43423.0,43420.0,0.0461]
[1642692776323,0.222801,43423.0,43420.0,0.0461]
[1642692778125,0.1652,43423.0,43420.0,0.0461]
[1642692778324,0.1662,43423.0,43420.0,0.0461]
[1642692779126,0.1662,43423.0,43420.0,0.1811]
[1642692780065,0.3705941,43423.0,43420.0,0.1811]
[1642692780272,0.1662,43423.0,43420.0,0.1161]
[1642692780473,0.1662,43423.0,43420.0,0.0461]
[1642692781269,0.1662,43423.0,43420.0,0.0781]
[1642692782470,0.1662,43423.0,43420.0,0.0461]
[1642692782672,0.1086,43423.0,43420.0,0.0461]
[1642692782874,0.29314564,43422.0,43413.0,1.54]
[1642692783083,0.20892074,43414.0,43408.0,0.79721529]
[1642692783273,0.26654574,43414.0,43408.0,0.79721529]
[1642692783473,0.55,43413.0,43408.0,0.79721529]
[1642692783672,0.1570165,43412.0,43411.0,0.00118604]
[1642692783918,0.6,43411.0,43394.0,1.39141123]
[1642692784118,0.115256,43409.0,43394.0,0.30731123]
[1642692784318,0.057628,43408.0,43397.0,0.00020628]
[1642692784520,0.057628,43408.0,43398.0,1.79718803]
[1642692784720,0.057628,43408.0,43398.0,1.80514405]
[1642692784917,0.057628,43408.0,43399.0,0.0001719]
[1642692785118,0.057628,43408.0,43399.0,0.00611666]
[1642692785416,0.057628,43408.0,43398.0,1.83218803]
[1642692785417,0.057628,43408.0,43400.0,0.00015471]
[1642692785817,0.057628,43408.0,43399.0,0.0001719]
[1642692786218,0.05161261,43414.0,43402.0,0.05879712]
[1642692786415,0.05161261,43414.0,43402.0,0.00118621]
[1642692786617,0.05161261,43414.0,43404.0,0.00558823]
[1642692786618,6.876e-05,43413.0,43404.0,0.00558823]
[1642692786818,6.876e-05,43413.0,43403.0,0.00010314]
[1642692787020,6.876e-05,43413.0,43405.0,0.00576138]
[1642692787219,6.876e-05,43413.0,43405.0,0.0526535]
[1642692787581,6.876e-05,43413.0,43407.0,0.00750551]
[1642692787782,6.876e-05,43413.0,43408.0,0.00637895]
[1642692787981,6.876e-05,43413.0,43409.0,0.06526909]
[1642692788185,6.876e-05,43413.0,43409.0,0.057605]
[1642692788381,0.05539145,43415.0,43410.0,0.45]
[1642692788581,0.00041009,43414.0,43410.0,0.45]
[1642692788982,0.11563609,43414.0,43409.0,0.00118608]
[1642692789181,0.05802209,43414.0,43410.0,0.017]
[1642692789583,0.057612,43414.0,43410.0,0.017]
[1642692789780,0.05793361,43414.0,43410.0,0.017]
[1642692790787,0.057612,43414.0,43410.0,0.017]
[1642692790982,0.05793361,43414.0,43409.0,0.00114013]
[1642692791182,0.05793361,43414.0,43410.0,0.017]
[1642692792012,0.057612,43414.0,43410.0,0.017]
[1642692792214,0.05793361,43414.0,43410.0,0.017]
[1642692792413,0.05793361,43414.0,43409.0,0.00114013]
[1642692793115,0.057612,43414.0,43409.0,0.022]
[1642692793320,0.00010314,43413.0,43409.0,0.02314013]
[1642692793713,8.595e-05,43412.0,43409.0,0.02314013]
[1642692794114,6.876e-05,43411.0,43409.0,0.02314013]
[1642692794314,6.876e-05,43411.0,43409.0,0.022]
[1642692794513,6.876e-05,43411.0,43409.0,7.0]
[1642692795171,0.21177356,43411.0,43409.0,7.041]
[1642692795371,6.876e-05,43411.0,43409.0,7.041]
[1642692796569,6.876e-05,43411.0,43409.0,7.0]
[1642692797171,6.876e-05,43411.0,43409.0,7.024]
[1642692798375,6.876e-05,43411.0,43409.0,7.0]
[1642692799328,0.00306876,43411.0,43409.0,7.025]
[1642692800528,0.00306876,43411.0,43409.0,6.99820499]
[1642692800529,6.876e-05,43411.0,43409.0,6.99820499]
[1642692801130,0.00206876,43411.0,43409.0,7.02620499]
[1642692802567,6.876e-05,43411.0,43409.0,6.99820499]
[1642692803171,0.00206876,43411.0,43409.0,7.02520499]
[1642692803370,0.00206876,43411.0,43409.0,6.56422599]
[1642692804369,0.00206876,43411.0,43409.0,6.53722599]
[1642692804670,0.05793104,43412.0,43410.0,0.9]
[1642692804868,0.05787104,43412.0,43409.0,6.53722599]
[1642692805071,0.17287,43411.0,43409.0,6.53722599]
[1642692805270,0.17287,43411.0,43410.0,0.023]
[1642692805670,0.17287,43411.0,43409.0,6.53722599]
[1642692806333,0.17287,43411.0,43409.0,6.07614599]
[1642692806334,0.19493669,43410.0,43409.0,6.07614599]
[1642692806625,0.23049982,43411.0,43409.0,6.07614599]
[1642692806626,0.17287,43411.0,43409.0,6.07614599]
[1642692807224,0.17687,43411.0,43409.0,6.09214599]
[1642692808425,0.17287,43411.0,43409.0,6.07614599]
[1642692809225,0.17687,43411.0,43409.0,6.09414599]
[1642692809627,0.17687,43411.0,43409.0,5.63312099]
[1642692811071,0.17287,43411.0,43409.0,5.61512099]
[1642692811272,0.17687,43411.0,43409.0,5.15407999]
[1642692811871,0.17687,43411.0,43409.0,4.69304199]
[1642692812473,0.17287,43411.0,43409.0,4.69304199]
[1642692813275,0.17687,43411.0,43409.0,4.69304199]
[1642692813476,0.17687,43411.0,43407.0,0.00114788]
[1642692813477,0.17687,43411.0,43397.0,0.01027]
[1642692813682,0.17687,43411.0,43397.0,0.00043]
[1642692813683,0.45,43398.0,43397.0,0.00043]
[1642692813939,0.172921,43400.0,43398.0,0.00022347]
[1642692814144,0.172921,43400.0,43385.0,1.19172141]
[1642692814338,0.0012644,43396.0,43387.0,0.00018909]
[1642692814736,0.057654,43389.0,43386.0,0.00020628]
[1642692814938,0.115309,43389.0,43386.0,0.00020628]
[1642692815336,0.23189176,43390.0,43386.0,0.00020628]
[1642692815337,0.00127476,43390.0,43386.0,0.00020628]
[1642692815536,0.0461,43400.0,43386.0,0.00020628]
[1642692815537,0.50127621,43399.0,43386.0,0.00020628]
[1642692815736,0.115287,43396.0,43394.0,0.15151403]
[1642692815937,0.115287,43396.0,43387.0,0.05]
[1642692816137,0.54737621,43399.0,43390.0,0.0011481]
[1642692816138,0.50127621,43399.0,43390.0,0.0011481]
[1642692816337,0.50127621,43399.0,43395.0,0.19126768]
[1642692816338,0.5,43399.0,43395.0,0.19126768]
[1642692816937,0.4998,43399.0,43395.0,0.19126768]
[1642692817236,0.5018,43399.0,43398.0,0.20084366]
[1642692817436,0.5018,43399.0,43395.0,0.20541569]
[1642692817873,0.5018,43399.0,43395.0,0.01414801]
[1642692818072,0.002,43399.0,43395.0,0.01414801]
[1642692818272,0.002,43399.0,43395.0,0.013]
[1642692818473,0.057634,43401.0,43396.0,0.2086298]
[1642692819277,0.059634,43401.0,43396.0,0.2196298]
[1642692819673,0.059634,43401.0,43396.0,0.22064868]
[1642692819875,0.002,43401.0,43396.0,0.22064868]
[1642692820676,0.50129168,43403.0,43400.0,0.22845084]
[1642692820982,6.876e-05,43402.0,43401.0,0.0461]
[1642692821423,6.876e-05,43402.0,43401.0,1.0461]
[1642692822222,6.876e-05,43402.0,43401.0,0.0461]
[1642692822423,6.876e-05,43402.0,43401.0,0.5461]
[1642692822624,6.876e-05,43402.0,43401.0,0.77093053]
[1642692823123,6.876e-05,43402.0,43401.0,0.5461]
[1642692823324,6.876e-05,43402.0,43401.0,0.5651]